{"text_format":"1","workbook":"xlsx","n_sheets":3,"sheets":["Generator","Print","Data"],"not_rendered":{"charts":0,"images":0,"macros":1,"external_links":0,"defined_names":12,"comments":0,"pivot_tables":0},"unopened":[],"bounds":{"document_bytes":16777216,"sheet_cells":100000,"rows_first":2000,"rows_last":500,"rows_between":2000,"halvings":0,"cell_chars":16384,"cell_head_chars":4096},"cells_cut":0,"cells_raw":0,"read":"whole","date_system":"1900"}

{"sheet":"Generator","index":0,"n_rows":33,"n_cols":7,"rows_kept":33,"cut":false,"hidden":false,"merged":[[0,1,0,4],[10,4,10,7]]}
["Framework Name","My Hauntingly Beautiful Framework"]
["Number of Threads",4]
[]
[]
[null,"No Of Hazards",1,2,3,4]
["Thread #1",{"$f":"IF($B$2>=1,RANDBETWEEN(3,4),0)","v":3},{"$f":"IF($B6>=C$5,VLOOKUP(RANDBETWEEN(1,5),Hazards,2,FALSE),\"\")","v":"Landscape"},"Weird","Elders",""]
["Thread #2",{"$f":"IF($B$2>=2,RANDBETWEEN(3,4),0)","v":4},"Elders","Townies","Landscape","Townies"]
["Thread #3",{"$f":"IF($B$2>=3,RANDBETWEEN(3,4),0)","v":3},"Weird","Landscape","Elders",""]
["Thread #4",{"$f":"IF($B$2>=4,RANDBETWEEN(3,4),0)","v":3},"Townies","Weird","Doom",""]
[]
["Thread #1",{"$f":"IF($B$2>=VALUE(RIGHT(A11,1)),VLOOKUP(RANDBETWEEN(1,14),TextureMatrix,2,FALSE),\"\")","v":"Love"},null,null,"tremulus Framework Generator\n"]
[{"$f":"C6","v":"Landscape"},{"$f":"IF($A12<>\"\",VLOOKUP($A12,HazardMatrix,RANDBETWEEN(1,VLOOKUP($A12,HazardMatrix,2,FALSE))+2,FALSE),\"\")","v":"Breeding Pit"},null,null,"1. Choose a number of threads"]
[{"$f":"D6","v":"Weird"},{"$f":"IF($A13<>\"\",VLOOKUP($A13,HazardMatrix,RANDBETWEEN(1,VLOOKUP($A13,HazardMatrix,2,FALSE))+2,FALSE),\"\")","v":"Megalomaniac"},null,null,"2. Click \"Refresh\" until a selection looks interesting"]
[{"$f":"E6","v":"Elders"},{"$f":"IF($A14<>\"\",VLOOKUP($A14,HazardMatrix,RANDBETWEEN(1,VLOOKUP($A14,HazardMatrix,2,FALSE))+2,FALSE),\"\")","v":"Prophet"},"Linchpin",null,"3. Choose a Framework name (optional)"]
[{"$f":"F6","v":""},{"$f":"IF($A15<>\"\",VLOOKUP($A15,HazardMatrix,RANDBETWEEN(1,VLOOKUP($A15,HazardMatrix,2,FALSE))+2,FALSE),\"\")","v":""},{"$f":"IF(B11=\"\",\"\",IF(B15=\"\",RANDBETWEEN(1,3),RANDBETWEEN(1,4)))","v":1},null,"4. Click Copy"]
[null,null,null,null,"5. Click Print (or use the Excel print menu)"]
["Thread #2",{"$f":"IF($B$2>=VALUE(RIGHT(A17,1)),VLOOKUP(RANDBETWEEN(1,14),TextureMatrix,2,FALSE),\"\")","v":"Escape"}]
[{"$f":"C7","v":"Elders"},{"$f":"IF($A18<>\"\",VLOOKUP($A18,HazardMatrix,RANDBETWEEN(1,VLOOKUP($A18,HazardMatrix,2,FALSE))+2,FALSE),\"\")","v":"Protector"},null,null,"I hope you find this little sheet helpful."]
[{"$f":"D7","v":"Townies"},{"$f":"IF($A19<>\"\",VLOOKUP($A19,HazardMatrix,RANDBETWEEN(1,VLOOKUP($A19,HazardMatrix,2,FALSE))+2,FALSE),\"\")","v":"Mob"},null,null,"Feel free to send feedback to lindan@gmx.de"]
[{"$f":"E7","v":"Landscape"},{"$f":"IF($A20<>\"\",VLOOKUP($A20,HazardMatrix,RANDBETWEEN(1,VLOOKUP($A20,HazardMatrix,2,FALSE))+2,FALSE),\"\")","v":"Mirage"},"Linchpin"]
[{"$f":"F7","v":"Townies"},{"$f":"IF($A21<>\"\",VLOOKUP($A21,HazardMatrix,RANDBETWEEN(1,VLOOKUP($A21,HazardMatrix,2,FALSE))+2,FALSE),\"\")","v":"Sybarites"},{"$f":"IF(B17=\"\",\"\",IF(B21=\"\",RANDBETWEEN(1,3),RANDBETWEEN(1,4)))","v":4},null,"Happy gaming!",null,"-Lindan"]
[]
["Thread #3",{"$f":"IF($B$2>=VALUE(RIGHT(A23,1)),VLOOKUP(RANDBETWEEN(1,14),TextureMatrix,2,FALSE),\"\")","v":"Transformation"}]
[{"$f":"C8","v":"Weird"},{"$f":"IF($A24<>\"\",VLOOKUP($A24,HazardMatrix,RANDBETWEEN(1,VLOOKUP($A24,HazardMatrix,2,FALSE))+2,FALSE),\"\")","v":"Outcast"}]
[{"$f":"D8","v":"Landscape"},{"$f":"IF($A25<>\"\",VLOOKUP($A25,HazardMatrix,RANDBETWEEN(1,VLOOKUP($A25,HazardMatrix,2,FALSE))+2,FALSE),\"\")","v":"Prison"},null,null,null,"Thread #4","Descent"]
[{"$f":"E8","v":"Elders"},{"$f":"IF($A26<>\"\",VLOOKUP($A26,HazardMatrix,RANDBETWEEN(1,VLOOKUP($A26,HazardMatrix,2,FALSE))+2,FALSE),\"\")","v":"Dictator"},"Linchpin",null,null,"Landscape","Maze"]
[{"$f":"F8","v":""},{"$f":"IF($A27<>\"\",VLOOKUP($A27,HazardMatrix,RANDBETWEEN(1,VLOOKUP($A27,HazardMatrix,2,FALSE))+2,FALSE),\"\")","v":""},{"$f":"IF(B23=\"\",\"\",IF(B27=\"\",RANDBETWEEN(1,3),RANDBETWEEN(1,4)))","v":2},null,null,"Elders","Protector"]
[null,null,null,null,null,"Elders","Prophet"]
["Thread #4",{"$f":"IF($B$2>=VALUE(RIGHT(A29,1)),VLOOKUP(RANDBETWEEN(1,14),TextureMatrix,2,FALSE),\"\")","v":"Love"},null,null,null,"",""]
[{"$f":"C9","v":"Townies"},{"$f":"IF($A30<>\"\",VLOOKUP($A30,HazardMatrix,RANDBETWEEN(1,VLOOKUP($A30,HazardMatrix,2,FALSE))+2,FALSE),\"\")","v":"Enforcers"}]
[{"$f":"D9","v":"Weird"},{"$f":"IF($A31<>\"\",VLOOKUP($A31,HazardMatrix,RANDBETWEEN(1,VLOOKUP($A31,HazardMatrix,2,FALSE))+2,FALSE),\"\")","v":"Sadomasochist"}]
[{"$f":"E9","v":"Doom"},{"$f":"IF($A32<>\"\",VLOOKUP($A32,HazardMatrix,RANDBETWEEN(1,VLOOKUP($A32,HazardMatrix,2,FALSE))+2,FALSE),\"\")","v":"Delusion"},"Linchpin"]
[{"$f":"F9","v":""},{"$f":"IF($A33<>\"\",VLOOKUP($A33,HazardMatrix,RANDBETWEEN(1,VLOOKUP($A33,HazardMatrix,2,FALSE))+2,FALSE),\"\")","v":""},{"$f":"IF(B29=\"\",\"\",IF(B33=\"\",RANDBETWEEN(1,3),RANDBETWEEN(1,4)))","v":3}]

{"sheet":"Print","index":1,"n_rows":36,"n_cols":10,"rows_kept":36,"cut":false,"hidden":false,"merged":[[0,5,0,9],[13,5,13,9],[26,5,26,9],[0,0,0,3],[1,0,1,3],[2,0,4,3]]}
["A framework for tremulus…",null,null,null,null,"Names"]
["My Hauntingly Beautiful Framework",null,null,null,null,"Louis","Ruiz",null,"Genevieve","Almeida"]
["Pitch:",null,null,null,null,"Walter","Floyd",null,"Mary","Hopkins"]
[null,null,null,null,null,"Delbert","Sutherland",null,"Naomi","Muir"]
[null,null,null,null,null,"Glenn","Ramsey",null,"Billie","Lawrence"]
[null,null,null,null,null,"James","Hickman",null,"Muriel","Watson"]
["Linchpin","Thread #1","Ascent","Impulse",null,"Bernard","Hanley",null,"Doris","Koch"]
[{"$f":"IF(Linchpin_1=Data!C53,\"***\",\"\")","v":""},"Elders","Protector",{"$f":"IF(C8=\"\",\"\",VLOOKUP(C8,HazardSubtypeMatrix,2,FALSE))","v":"to maintain the status quo"},null,"Bennie","Alvarez",null,"Peggy","Nash"]
[{"$f":"IF(Linchpin_1=Data!C54,\"***\",\"\")","v":""},"Elders","Dictator",{"$f":"IF(C9=\"\",\"\",VLOOKUP(C9,HazardSubtypeMatrix,2,FALSE))","v":"to control"}]
[{"$f":"IF(Linchpin_1=Data!C55,\"***\",\"\")","v":"***"},"Elders","Prophet",{"$f":"IF(C10=\"\",\"\",VLOOKUP(C10,HazardSubtypeMatrix,2,FALSE))","v":"to denounce and overthrow"}]
[{"$f":"IF(Linchpin_1=Data!C56,\"***\",\"\")","v":""},"Doom","Condition",{"$f":"IF(C11=\"\",\"\",VLOOKUP(C11,HazardSubtypeMatrix,2,FALSE))","v":"to expose people to danger"}]
["Notes"]
[]
[null,null,null,null,null,"Locations"]
["Linchpin","Thread #2","Descent","Impulse"]
[{"$f":"IF(Linchpin_2=Data!C53,\"***\",\"\")","v":""},"Landscape","Maze",{"$f":"IF(C16=\"\",\"\",VLOOKUP(C16,HazardSubtypeMatrix,2,FALSE))","v":"to trap, to frustrate passage"}]
[{"$f":"IF(Linchpin_2=Data!C54,\"***\",\"\")","v":"***"},"Landscape","Breeding Pit",{"$f":"IF(C17=\"\",\"\",VLOOKUP(C17,HazardSubtypeMatrix,2,FALSE))","v":"to generate weirdness"}]
[{"$f":"IF(Linchpin_2=Data!C55,\"***\",\"\")","v":""},"Landscape","Furnace",{"$f":"IF(C18=\"\",\"\",VLOOKUP(C18,HazardSubtypeMatrix,2,FALSE))","v":"to consume things"}]
[{"$f":"IF(Linchpin_2=Data!C56,\"***\",\"\")","v":""},"Weird","Outcast",{"$f":"IF(C19=\"\",\"\",VLOOKUP(C19,HazardSubtypeMatrix,2,FALSE))","v":"craves restitution, recompense"}]
["Notes"]
[]
[]
["Linchpin","Thread #3","Descent","Impulse"]
[{"$f":"IF(Linchpin_3=Data!C53,\"***\",\"\")","v":""},"Elders","Dictator",{"$f":"IF(C24=\"\",\"\",VLOOKUP(C24,HazardSubtypeMatrix,2,FALSE))","v":"to control"}]
[{"$f":"IF(Linchpin_3=Data!C54,\"***\",\"\")","v":""},"Weird","Megalomaniac",{"$f":"IF(C25=\"\",\"\",VLOOKUP(C25,HazardSubtypeMatrix,2,FALSE))","v":"craves mastery"}]
[{"$f":"IF(Linchpin_3=Data!C55,\"***\",\"\")","v":"***"},"Landscape","Maze",{"$f":"IF(C26=\"\",\"\",VLOOKUP(C26,HazardSubtypeMatrix,2,FALSE))","v":"to trap, to frustrate passage"}]
[{"$f":"IF(Linchpin_3=Data!C56,\"***\",\"\")","v":""},"","",{"$f":"IF(C27=\"\",\"\",VLOOKUP(C27,HazardSubtypeMatrix,2,FALSE))","v":""},null,"Points of Interest / Mysteries"]
["Notes"]
[]
[]
["Linchpin","Thread #4","Revenge"]
[{"$f":"IF(Linchpin_4=Data!C53,\"***\",\"\")","v":""},"Townies","Family",{"$f":"IF(C32=\"\",\"\",VLOOKUP(C32,HazardSubtypeMatrix,2,FALSE))","v":"to close ranks, protect their own"}]
[{"$f":"IF(Linchpin_4=Data!C54,\"***\",\"\")","v":"***"},"Elders","Protector",{"$f":"IF(C33=\"\",\"\",VLOOKUP(C33,HazardSubtypeMatrix,2,FALSE))","v":"to maintain the status quo"}]
[{"$f":"IF(Linchpin_4=Data!C55,\"***\",\"\")","v":""},"Landscape","Mirage",{"$f":"IF(C34=\"\",\"\",VLOOKUP(C34,HazardSubtypeMatrix,2,FALSE))","v":"to entice and betray people"}]
[{"$f":"IF(Linchpin_4=Data!C56,\"***\",\"\")","v":""},"Elders","Collector",{"$f":"IF(C35=\"\",\"\",VLOOKUP(C35,HazardSubtypeMatrix,2,FALSE))","v":"to own"}]
["Notes"]

{"sheet":"Data","index":2,"n_rows":1001,"n_cols":14,"rows_kept":1001,"cut":false,"hidden":false,"merged":[]}
[1,"Ascent"," A rise to power.",null,null,null,null,1,null,null,null,"Surnames","GivenNamesMale","GivenNamesFemale"]
[2,"Descent"," A fall from power or grace.",null,null,null,null,2,null,null,1,"Jones","Robert","Mary"]
[3,"Escape"," Getting away from someone or something.",null,null,null,null,3,null,null,2,"Williams","John","Dorothy"]
[4,"Forbidden Love"," Romance gone awry, often dark, twisted, or between human and alien entities.",null,null,null,null,4,null,null,3,"Campbell","James","Helen"]
[5,"Love"," Romance through a weird lens (Obsession? Eros? Alien?)",null,null,null,null,null,null,null,4,"Davis","William","Betty"]
[6,"Maturation"," Someone or something is growing up.",null,null,null,null,null,null,null,5,"Thompson","Charles","Margaret"]
[7,"Metamorphosis"," Someone or something is physically changing.",null,null,null,null,null,null,null,6,"Kelly","George","Ruth"]
[8,"Pursuit"," Someone or something seeks to get away.",null,null,null,null,null,null,null,7,"Sullivan","Joseph","Virginia"]
[9,"Rescue"," Someone or something must be restored to its proper place.",null,null,null,null,null,null,null,8,"O'Brien","Richard","Doris"]
[10,"Revenge"," A past slight redressed or a murder in the making.",null,null,null,null,null,null,null,9,"Evans","Edward","Mildred"]
[11,"Rivalry"," Competing with another agency for the same objective.",null,null,null,null,null,null,null,10,"Brown","Donald","Frances"]
[12,"Temptation"," The promise of something someone desires.",null,null,null,null,null,null,null,11,"Lewis","Thomas","Elizabeth"]
[13,"Transformation"," Someone or something is changing on a subtle level.",null,null,null,null,null,null,null,12,"Wilson","Frank","Evelyn"]
[14,"Wretched Excess","Someone or something goes beyond the bounds of normalcy.",null,null,null,null,null,null,null,13,"Wallace","Harold","Anna"]
[null,null,null,null,null,null,null,null,null,null,14,"Ryan","Paul","Marie"]
[1,"Elders",4,"Collector","Dictator","Prophet","Protector",null,null,null,15,"Moore","Raymond","Alice"]
[2,"Townies",6,"Cult","Enforcers","Family","Hunting pack","Mob","Sybarites",null,16,"Anderson","Walter","Jean"]
[3,"Landscape",6,"Breeding Pit","Fortress","Furnace","Maze","Mirage","Prison",null,17,"Jackson","Jack","Shirley"]
[4,"Weird",6,"Cannibal","Disease vector","Megalomaniac","Outcast","Perversity","Sadomasochist",null,18,"Johnson","Henry","Barbara"]
[5,"Doom",7,"Barrier","Condition","Delusion","Disease","Mythos","Sacrifice","Tradition",19,"Smith","Kenneth","Irene"]
[null,null,null,null,null,null,null,null,null,null,20,"Murphy","Arthur","Marjorie"]
["Collector","to own",null,null,null,null,null,null,null,null,21,"Rogers","Albert","Florence"]
["Dictator","to control",null,null,null,null,null,null,null,null,22,"Phillips","David","Lois"]
["Prophet","to denounce and overthrow",null,null,null,null,null,null,null,null,23,"Jones","Harry","Martha"]
["Protector","to maintain the status quo",null,null,null,null,null,null,null,null,24,"Morgan","Eugene","Rose"]
["Cult","to victimize and incorporate people",null,null,null,null,null,null,null,null,25,"Graham","Ralph","Lillian"]
["Enforcers","to victimize nayone who stands out",null,null,null,null,null,null,null,null,26,"Robinson","Howard","Louise"]
["Family","to close ranks, protect their own",null,null,null,null,null,null,null,null,27,"Burns","Carl","Catherine"]
["Hunting pack","to victimize anyone vulnerable",null,null,null,null,null,null,null,null,28,"Rodriguez","Willie","Ruby"]
["Mob","to riot, burn, kill scapegoats",null,null,null,null,null,null,null,null,29,"Robertson","Louis","Eleanor"]
["Sybarites","to consume someone's resources",null,null,null,null,null,null,null,null,30,"Thomas","Clarence","Patricia"]
["Breeding Pit","to generate weirdness",null,null,null,null,null,null,null,null,31,"Walker","Earl","Gladys"]
["Fortress","to deny access",null,null,null,null,null,null,null,null,32,"Clark","Roy","Annie"]
["Furnace","to consume things",null,null,null,null,null,null,null,null,33,"Harris","Fred","Josephine"]
["Maze","to trap, to frustrate passage",null,null,null,null,null,null,null,null,34,"Wright","Joe","Thelma"]
["Mirage","to entice and betray people",null,null,null,null,null,null,null,null,35,"Howard","Francis","Edna"]
["Prison","to contain, to deny egress",null,null,null,null,null,null,null,null,36,"Powell","Lawrence","Norma"]
["Cannibal","craves satiety and plenty",null,null,null,null,null,null,null,null,37,"Price","Herbert","Pauline"]
["Disease vector","craves contact, intimate and/or anonymous",null,null,null,null,null,null,null,null,38,"King","Leonard","Lucille"]
["Megalomaniac","craves mastery",null,null,null,null,null,null,null,null,39,"Fitzgerald","Ernest","Edith"]
["Outcast","craves restitution, recompense",null,null,null,null,null,null,null,null,40,"Roberts","Alfred","Gloria"]
["Perversity","craves overthrow, chaos, ruination of all",null,null,null,null,null,null,null,null,41,"Taylor","Anthony","Ethel"]
["Sadomasochist","craves pain, it's own or others",null,null,null,null,null,null,null,null,42,"Lopez","Stanley","Phyllis"]
["Barrier","to impoverish people",null,null,null,null,null,null,null,null,43,"Russell","Norman","Grace"]
["Condition","to expose people to danger",null,null,null,null,null,null,null,null,44,"Gray","Gerald","Hazel"]
["Delusion","to dominate people's choices and actions",null,null,null,null,null,null,null,null,45,"Walsh","Daniel","June"]
["Disease","to saturate a population",null,null,null,null,null,null,null,null,46,"Duncan","Samuel","Bernice"]
["Mythos","to destroy/dominate",null,null,null,null,null,null,null,null,47,"Kelley","Bernard","Marion"]
["Sacrifice","to leave people bereft",null,null,null,null,null,null,null,null,48,"Stewart","Billy","Dolores"]
["Tradition","to promote and justify violence",null,null,null,null,null,null,null,null,49,"Hernandez","Melvin","Rita"]
[null,null,null,null,null,null,null,null,null,null,50,"Richardson","Marvin","Lorraine"]
[null,null,null,null,null,null,null,null,null,null,51,"Higgins","Warren","Ann"]
["Linchpin 1",3,1,null,null,null,null,null,null,null,52,"Hamilton","Michael","Esther"]
["Linchpin 2",2,2,null,null,null,null,null,null,null,53,"Wells","Leroy","Beatrice"]
["Linchpin 3",3,3,null,null,null,null,null,null,null,54,"Carroll","Russell","Juanita"]
["Linchpin 4",2,4,null,null,null,null,null,null,null,55,"Ferguson","Leo","Clara"]
[null,null,null,null,null,null,null,null,null,null,56,"Armstrong","Andrew","Jane"]
[{"$f":"VLOOKUP(RANDBETWEEN(1,200),NamesMatrix,3,FALSE)","v":"Tom"},{"$f":"VLOOKUP(RANDBETWEEN(1,1000),NamesMatrix,2,FALSE)","v":"Medeiros"},null,{"$f":"VLOOKUP(RANDBETWEEN(1,200),NamesMatrix,4,FALSE)","v":"Verna"},{"$f":"VLOOKUP(RANDBETWEEN(1,1000),NamesMatrix,2,FALSE)","v":"Peters"},null,null,null,null,null,57,"Allen","Edwin","Geraldine"]
[{"$f":"VLOOKUP(RANDBETWEEN(1,200),NamesMatrix,3,FALSE)","v":"Guy"},{"$f":"VLOOKUP(RANDBETWEEN(1,1000),NamesMatrix,2,FALSE)","v":"Larsen"},null,{"$f":"VLOOKUP(RANDBETWEEN(1,200),NamesMatrix,4,FALSE)","v":"Alberta"},{"$f":"VLOOKUP(RANDBETWEEN(1,1000),NamesMatrix,2,FALSE)","v":"Ewing"},null,null,null,null,null,58,"Burke","Elmer","Sarah"]
[{"$f":"VLOOKUP(RANDBETWEEN(1,200),NamesMatrix,3,FALSE)","v":"Leland"},{"$f":"VLOOKUP(RANDBETWEEN(1,1000),NamesMatrix,2,FALSE)","v":"Shields"},null,{"$f":"VLOOKUP(RANDBETWEEN(1,200),NamesMatrix,4,FALSE)","v":"Pearl"},{"$f":"VLOOKUP(RANDBETWEEN(1,1000),NamesMatrix,2,FALSE)","v":"Dugan"},null,null,null,null,null,59,"Martinez","Peter","Emma"]
[{"$f":"VLOOKUP(RANDBETWEEN(1,200),NamesMatrix,3,FALSE)","v":"Fred"},{"$f":"VLOOKUP(RANDBETWEEN(1,1000),NamesMatrix,2,FALSE)","v":"Maurer"},null,{"$f":"VLOOKUP(RANDBETWEEN(1,200),NamesMatrix,4,FALSE)","v":"Ruth"},{"$f":"VLOOKUP(RANDBETWEEN(1,1000),NamesMatrix,2,FALSE)","v":"Batchelor"},null,null,null,null,null,60,"Cole","Floyd","Joan"]
[{"$f":"VLOOKUP(RANDBETWEEN(1,200),NamesMatrix,3,FALSE)","v":"Gene"},{"$f":"VLOOKUP(RANDBETWEEN(1,1000),NamesMatrix,2,FALSE)","v":"Oliver"},null,{"$f":"VLOOKUP(RANDBETWEEN(1,200),NamesMatrix,4,FALSE)","v":"Anna"},{"$f":"VLOOKUP(RANDBETWEEN(1,1000),NamesMatrix,2,FALSE)","v":"Dalton"},null,null,null,null,null,61,"Lynch","Lloyd","Joyce"]
[{"$f":"VLOOKUP(RANDBETWEEN(1,200),NamesMatrix,3,FALSE)","v":"Marvin"},{"$f":"VLOOKUP(RANDBETWEEN(1,1000),NamesMatrix,2,FALSE)","v":"Kinney"},null,{"$f":"VLOOKUP(RANDBETWEEN(1,200),NamesMatrix,4,FALSE)","v":"Donna"},{"$f":"VLOOKUP(RANDBETWEEN(1,1000),NamesMatrix,2,FALSE)","v":"Abernathy"},null,null,null,null,null,62,"McCarthy","Ray","Nancy"]
[{"$f":"VLOOKUP(RANDBETWEEN(1,200),NamesMatrix,3,FALSE)","v":"Ronald"},{"$f":"VLOOKUP(RANDBETWEEN(1,1000),NamesMatrix,2,FALSE)","v":"Compton"},null,{"$f":"VLOOKUP(RANDBETWEEN(1,200),NamesMatrix,4,FALSE)","v":"Myrtle"},{"$f":"VLOOKUP(RANDBETWEEN(1,1000),NamesMatrix,2,FALSE)","v":"Cross"},null,null,null,null,null,63,"Nelson","Frederick","Katherine"]
[null,null,null,null,null,null,null,null,null,null,64,"Gonzalez","Theodore","Gertrude"]
[null,null,null,null,null,null,null,null,null,null,65,"Baker","Clifford","Elsie"]
[null,null,null,null,null,null,null,null,null,null,66,"Parker","Vernon","Julia"]
[null,null,null,null,null,null,null,null,null,null,67,"Moran","Herman","Agnes"]
[null,null,null,null,null,null,null,null,null,null,68,"Hall","Clyde","Wilma"]
[null,null,null,null,null,null,null,null,null,null,69,"Craig","Chester","Marian"]
[null,null,null,null,null,null,null,null,null,null,70,"Perez","Philip","Bertha"]
[null,null,null,null,null,null,null,null,null,null,71,"Davies","Alvin","Eva"]
[null,null,null,null,null,null,null,null,null,null,72,"Watson","Lester","Willie"]
[null,null,null,null,null,null,null,null,null,null,73,"Hughes","Wayne","Audrey"]
[null,null,null,null,null,null,null,null,null,null,74,"Hill","Vincent","Theresa"]
[null,null,null,null,null,null,null,null,null,null,75,"Adams","Gordon","Vivian"]
[null,null,null,null,null,null,null,null,null,null,76,"Chapman","Leon","Wanda"]
[null,null,null,null,null,null,null,null,null,null,77,"Casey","Lewis","Laura"]
[null,null,null,null,null,null,null,null,null,null,78,"Butler","Charlie","Charlotte"]
[null,null,null,null,null,null,null,null,null,null,79,"Ward","Glenn","Ida"]
[null,null,null,null,null,null,null,null,null,null,80,"White","Calvin","Elaine"]
[null,null,null,null,null,null,null,null,null,null,81,"Knight","Martin","Anne"]
[null,null,null,null,null,null,null,null,null,null,82,"Garcia","Milton","Marilyn"]
[null,null,null,null,null,null,null,null,null,null,83,"Grant","Lee","Kathryn"]
[null,null,null,null,null,null,null,null,null,null,84,"Spencer","Jesse","Maxine"]
[null,null,null,null,null,null,null,null,null,null,85,"Henderson","Dale","Kathleen"]
[null,null,null,null,null,null,null,null,null,null,86,"Green","Cecil","Viola"]
[null,null,null,null,null,null,null,null,null,null,87,"Perry","Bill","Pearl"]
[null,null,null,null,null,null,null,null,null,null,88,"Bailey","Harvey","Vera"]
[null,null,null,null,null,null,null,null,null,null,89,"Turner","Roger","Bessie"]
[null,null,null,null,null,null,null,null,null,null,90,"Cunningham","Victor","Myrtle"]
[null,null,null,null,null,null,null,null,null,null,91,"Martin","Benjamin","Alma"]
[null,null,null,null,null,null,null,null,null,null,92,"Morris","Wallace","Beverly"]
[null,null,null,null,null,null,null,null,null,null,93,"McLaughlin","Ronald","Violet"]
[null,null,null,null,null,null,null,null,null,null,94,"Harrison","Sam","Nellie"]
[null,null,null,null,null,null,null,null,null,null,95,"Long","Allen","Ella"]
[null,null,null,null,null,null,null,null,null,null,96,"Flynn","Arnold","Lillie"]
[null,null,null,null,null,null,null,null,null,null,97,"Gallagher","Willard","Jessie"]
[null,null,null,null,null,null,null,null,null,null,98,"Edwards","Gilbert","Jeanne"]
[null,null,null,null,null,null,null,null,null,null,99,"Brooks","Edgar","Eileen"]
[null,null,null,null,null,null,null,null,null,null,100,"Miller","Oscar","Ellen"]
[null,null,null,null,null,null,null,null,null,null,101,"Dunn","Gene","Lucy"]
[null,null,null,null,null,null,null,null,null,null,102,"Cooper","Jerry","Minnie"]
[null,null,null,null,null,null,null,null,null,null,103,"Young","Douglas","Sylvia"]
[null,null,null,null,null,null,null,null,null,null,104,"Owens","Johnnie","Donna"]
[null,null,null,null,null,null,null,null,null,null,105,"Cook","Claude","Leona"]
[null,null,null,null,null,null,null,null,null,null,106,"Carter","Don","Rosemary"]
[null,null,null,null,null,null,null,null,null,null,107,"Ross","Eddie","Stella"]
[null,null,null,null,null,null,null,null,null,null,108,"Ramirez","Roland","Mattie"]
[null,null,null,null,null,null,null,null,null,null,109,"Ellis","Everett","Margie"]
[null,null,null,null,null,null,null,null,null,null,110,"Mitchell","Maurice","Genevieve"]
[null,null,null,null,null,null,null,null,null,null,111,"Cameron","Curtis","Mabel"]
[null,null,null,null,null,null,null,null,null,null,112,"Warren","Marion","Janet"]
[null,null,null,null,null,null,null,null,null,null,113,"Johnston","Virgil","Geneva"]
[null,null,null,null,null,null,null,null,null,null,114,"Gibson","Wilbur","Georgia"]
[null,null,null,null,null,null,null,null,null,null,115,"Smith","Manuel","Bonnie"]
[null,null,null,null,null,null,null,null,null,null,116,"Buchanan","Stephen","Carol"]
[null,null,null,null,null,null,null,null,null,null,117,"Barnes","Jerome","Velma"]
[null,null,null,null,null,null,null,null,null,null,118,"Byrne","Homer","Lena"]
[null,null,null,null,null,null,null,null,null,null,119,"Riley","Leslie","Carolyn"]
[null,null,null,null,null,null,null,null,null,null,120,"Morrison","Glen","Mae"]
[null,null,null,null,null,null,null,null,null,null,121,"Foster","Jessie","Jennie"]
[null,null,null,null,null,null,null,null,null,null,122,"Lloyd","Hubert","Maria"]
[null,null,null,null,null,null,null,null,null,null,123,"Rivera","Jose","Christine"]
[null,null,null,null,null,null,null,null,null,null,124,"Richards","Jimmie","Arlene"]
[null,null,null,null,null,null,null,null,null,null,125,"McClure","Sidney","Peggy"]
[null,null,null,null,null,null,null,null,null,null,126,"Elliott","Morris","Marguerite"]
[null,null,null,null,null,null,null,null,null,null,127,"Taylor","Hugh","Opal"]
[null,null,null,null,null,null,null,null,null,null,128,"Andrews","Max","Sara"]
[null,null,null,null,null,null,null,null,null,null,129,"Miller","Bobby","Loretta"]
[null,null,null,null,null,null,null,null,null,null,130,"MacDonald","Bob","Harriet"]
[null,null,null,null,null,null,null,null,null,null,131,"O'Neill","Nicholas","Rosa"]
[null,null,null,null,null,null,null,null,null,null,132,"McMahon","Luther","Muriel"]
[null,null,null,null,null,null,null,null,null,null,133,"Fowler","Bruce","Eunice"]
[null,null,null,null,null,null,null,null,null,null,134,"Douglas","Junior","Jeanette"]
[null,null,null,null,null,null,null,null,null,null,135,"Crawford","Wesley","Blanche"]
[null,null,null,null,null,null,null,null,null,null,136,"Mason","Rudolph","Carrie"]
[null,null,null,null,null,null,null,null,null,null,137,"Alexander","Alexander","Emily"]
[null,null,null,null,null,null,null,null,null,null,138,"Stevens","Franklin","Beulah"]
[null,null,null,null,null,null,null,null,null,null,139,"Hawkins","Tom","Billie"]
[null,null,null,null,null,null,null,null,null,null,140,"Clark","Irving","Dora"]
[null,null,null,null,null,null,null,null,null,null,141,"Wagner","Horace","Roberta"]
[null,null,null,null,null,null,null,null,null,null,142,"Farrell","Willis","Hilda"]
[null,null,null,null,null,null,null,null,null,null,143,"Wood","Patrick","Naomi"]
[null,null,null,null,null,null,null,null,null,null,144,"Fitzpatrick","Steve","Anita"]
[null,null,null,null,null,null,null,null,null,null,145,"McCormick","Johnny","Jacqueline"]
[null,null,null,null,null,null,null,null,null,null,146,"Webb","Dean","Alberta"]
[null,null,null,null,null,null,null,null,null,null,147,"Myers","Julius","Inez"]
[null,null,null,null,null,null,null,null,null,null,148,"Hunt","Keith","Delores"]
[null,null,null,null,null,null,null,null,null,null,149,"Montgomery","Oliver","Fannie"]
[null,null,null,null,null,null,null,null,null,null,150,"Harper","Earnest","Hattie"]
[null,null,null,null,null,null,null,null,null,null,151,"Tucker","Ben","Lula"]
[null,null,null,null,null,null,null,null,null,null,152,"Schmidt","Jim","Verna"]
[null,null,null,null,null,null,null,null,null,null,153,"Torres","Tony","Cora"]
[null,null,null,null,null,null,null,null,null,null,154,"West","Edmund","Constance"]
[null,null,null,null,null,null,null,null,null,null,155,"Sweeney","Lyle","Madeline"]
[null,null,null,null,null,null,null,null,null,null,156,"Holmes","Guy","Miriam"]
[null,null,null,null,null,null,null,null,null,null,157,"Dixon","Salvatore","Ada"]
[null,null,null,null,null,null,null,null,null,null,158,"Payne","Orville","Claire"]
[null,null,null,null,null,null,null,null,null,null,159,"Barrett","Delbert","Mamie"]
[null,null,null,null,null,null,null,null,null,null,160,"Jensen","Billie","Lola"]
[null,null,null,null,null,null,null,null,null,null,161,"Perkins","Phillip","Rosie"]
[null,null,null,null,null,null,null,null,null,null,162,"O'Donnell","Clayton","Erma"]
[null,null,null,null,null,null,null,null,null,null,163,"McLean","Otis","Rachel"]
[null,null,null,null,null,null,null,null,null,null,164,"Scott","Archie","Mable"]
[null,null,null,null,null,null,null,null,null,null,165,"Lee","Alex","Flora"]
[null,null,null,null,null,null,null,null,null,null,166,"Lucas","Angelo","Daisy"]
[null,null,null,null,null,null,null,null,null,null,167,"Murray","Mike","Sally"]
[null,null,null,null,null,null,null,null,null,null,168,"Reed","Jacob","Marcella"]
[null,null,null,null,null,null,null,null,null,null,169,"McCullough","Clifton","Bette"]
[null,null,null,null,null,null,null,null,null,null,170,"Quinn","Bennie","Olga"]
[null,null,null,null,null,null,null,null,null,null,171,"Bennett","Duane","Caroline"]
[null,null,null,null,null,null,null,null,null,null,172,"Hopkins","Matthew","Laverne"]
[null,null,null,null,null,null,null,null,null,null,173,"Stephens","Clinton","Sophie"]
[null,null,null,null,null,null,null,null,null,null,174,"Ortiz","Dennis","Nora"]
[null,null,null,null,null,null,null,null,null,null,175,"Foley","Wilbert","Rebecca"]
[null,null,null,null,null,null,null,null,null,null,176,"Simmons","Dan","Estelle"]
[null,null,null,null,null,null,null,null,null,null,177,"Reid","Jay","Irma"]
[null,null,null,null,null,null,null,null,null,null,178,"McGrath","Marshall","Susie"]
[null,null,null,null,null,null,null,null,null,null,179,"Patterson","Leland","Eula"]
[null,null,null,null,null,null,null,null,null,null,180,"Nolan","Merle","Winifred"]
[null,null,null,null,null,null,null,null,null,null,181,"Kennedy","Ira","Eloise"]
[null,null,null,null,null,null,null,null,null,null,182,"Sanchez","Nathaniel","Janice"]
[null,null,null,null,null,null,null,null,null,null,183,"Joyce","Ivan","Maggie"]
[null,null,null,null,null,null,null,null,null,null,184,"Dillon","Ervin","Antoinette"]
[null,null,null,null,null,null,null,null,null,null,185,"Doyle","Jimmy","Nina"]
[null,null,null,null,null,null,null,null,null,null,186,"Brennan","Irvin","Rosalie"]
[null,null,null,null,null,null,null,null,null,null,187,"Holland","Alton","Imogene"]
[null,null,null,null,null,null,null,null,null,null,188,"Gordon","Lowell","Lorene"]
[null,null,null,null,null,null,null,null,null,null,189,"Brady","Dewey","Olive"]
[null,null,null,null,null,null,null,null,null,null,190,"McCann","Larry","Sadie"]
[null,null,null,null,null,null,null,null,null,null,191,"Schneider","Emil","Regina"]
[null,null,null,null,null,null,null,null,null,null,192,"Rhodes","Antonio","Victoria"]
[null,null,null,null,null,null,null,null,null,null,193,"Little","Wilfred","Henrietta"]
[null,null,null,null,null,null,null,null,null,null,194,"Coleman","Elbert","Della"]
[null,null,null,null,null,null,null,null,null,null,195,"McDonald","Juan","Bettie"]
[null,null,null,null,null,null,null,null,null,null,196,"Howell","Alan","Lila"]
[null,null,null,null,null,null,null,null,null,null,197,"Rowe","Allan","Fern"]
[null,null,null,null,null,null,null,null,null,null,198,"Reyes","Lonnie","Faye"]
[null,null,null,null,null,null,null,null,null,null,199,"Dougherty","Nelson","Johnnie"]
[null,null,null,null,null,null,null,null,null,null,200,"Bates","Forrest","Jeannette"]
[null,null,null,null,null,null,null,null,null,null,201,"Anderson"]
[null,null,null,null,null,null,null,null,null,null,202,"Romero"]
[null,null,null,null,null,null,null,null,null,null,203,"Rice"]
[null,null,null,null,null,null,null,null,null,null,204,"O'Connor"]
[null,null,null,null,null,null,null,null,null,null,205,"Webster"]
[null,null,null,null,null,null,null,null,null,null,206,"Ritchie"]
[null,null,null,null,null,null,null,null,null,null,207,"MacKay"]
[null,null,null,null,null,null,null,null,null,null,208,"Thomson"]
[null,null,null,null,null,null,null,null,null,null,209,"Hicks"]
[null,null,null,null,null,null,null,null,null,null,210,"Hunter"]
[null,null,null,null,null,null,null,null,null,null,211,"Hansen"]
[null,null,null,null,null,null,null,null,null,null,212,"Burton"]
[null,null,null,null,null,null,null,null,null,null,213,"McPherson"]
[null,null,null,null,null,null,null,null,null,null,214,"Vaughn"]
[null,null,null,null,null,null,null,null,null,null,215,"Reynolds"]
[null,null,null,null,null,null,null,null,null,null,216,"Mills"]
[null,null,null,null,null,null,null,null,null,null,217,"Hogan"]
[null,null,null,null,null,null,null,null,null,null,218,"Hayes"]
[null,null,null,null,null,null,null,null,null,null,219,"Parsons"]
[null,null,null,null,null,null,null,null,null,null,220,"Lyons"]
[null,null,null,null,null,null,null,null,null,null,221,"Gardner"]
[null,null,null,null,null,null,null,null,null,null,222,"Morris"]
[null,null,null,null,null,null,null,null,null,null,223,"Fletcher"]
[null,null,null,null,null,null,null,null,null,null,224,"Hart"]
[null,null,null,null,null,null,null,null,null,null,225,"Fuller"]
[null,null,null,null,null,null,null,null,null,null,226,"McIntosh"]
[null,null,null,null,null,null,null,null,null,null,227,"Morales"]
[null,null,null,null,null,null,null,null,null,null,228,"Gilbert"]
[null,null,null,null,null,null,null,null,null,null,229,"Martin"]
[null,null,null,null,null,null,null,null,null,null,230,"Stone"]
[null,null,null,null,null,null,null,null,null,null,231,"Cox"]
[null,null,null,null,null,null,null,null,null,null,232,"McFarland"]
[null,null,null,null,null,null,null,null,null,null,233,"Nichols"]
[null,null,null,null,null,null,null,null,null,null,234,"Fraser"]
[null,null,null,null,null,null,null,null,null,null,235,"Wheeler"]
[null,null,null,null,null,null,null,null,null,null,236,"Bradshaw"]
[null,null,null,null,null,null,null,null,null,null,237,"Kirk"]
[null,null,null,null,null,null,null,null,null,null,238,"Arnold"]
[null,null,null,null,null,null,null,null,null,null,239,"Rose"]
[null,null,null,null,null,null,null,null,null,null,240,"Bishop"]
[null,null,null,null,null,null,null,null,null,null,241,"Thornton"]
[null,null,null,null,null,null,null,null,null,null,242,"Hudson"]
[null,null,null,null,null,null,null,null,null,null,243,"Owen"]
[null,null,null,null,null,null,null,null,null,null,244,"McGuire"]
[null,null,null,null,null,null,null,null,null,null,245,"Lawrence"]
[null,null,null,null,null,null,null,null,null,null,246,"Bowman"]
[null,null,null,null,null,null,null,null,null,null,247,"McLeod"]
[null,null,null,null,null,null,null,null,null,null,248,"White"]
[null,null,null,null,null,null,null,null,null,null,249,"McKenna"]
[null,null,null,null,null,null,null,null,null,null,250,"Guthrie"]
[null,null,null,null,null,null,null,null,null,null,251,"Moss"]
[null,null,null,null,null,null,null,null,null,null,252,"Williams"]
[null,null,null,null,null,null,null,null,null,null,253,"Jenkins"]
[null,null,null,null,null,null,null,null,null,null,254,"Collins"]
[null,null,null,null,null,null,null,null,null,null,255,"White"]
[null,null,null,null,null,null,null,null,null,null,256,"Young"]
[null,null,null,null,null,null,null,null,null,null,257,"Simpson"]
[null,null,null,null,null,null,null,null,null,null,258,"Edwards"]
[null,null,null,null,null,null,null,null,null,null,259,"Bell"]
[null,null,null,null,null,null,null,null,null,null,260,"McKnight"]
[null,null,null,null,null,null,null,null,null,null,261,"Keith"]
[null,null,null,null,null,null,null,null,null,null,262,"Sinclair"]
[null,null,null,null,null,null,null,null,null,null,263,"Donovan"]
[null,null,null,null,null,null,null,null,null,null,264,"Kerr"]
[null,null,null,null,null,null,null,null,null,null,265,"Fox"]
[null,null,null,null,null,null,null,null,null,null,266,"Murray"]
[null,null,null,null,null,null,null,null,null,null,267,"Sutton"]
[null,null,null,null,null,null,null,null,null,null,268,"McCallum"]
[null,null,null,null,null,null,null,null,null,null,269,"O'Connell"]
[null,null,null,null,null,null,null,null,null,null,270,"Newton"]
[null,null,null,null,null,null,null,null,null,null,271,"Baldwin"]
[null,null,null,null,null,null,null,null,null,null,272,"Chavez"]
[null,null,null,null,null,null,null,null,null,null,273,"Boyle"]
[null,null,null,null,null,null,null,null,null,null,274,"Roach"]
[null,null,null,null,null,null,null,null,null,null,275,"Peterson"]
[null,null,null,null,null,null,null,null,null,null,276,"Sharp"]
[null,null,null,null,null,null,null,null,null,null,277,"Scott"]
[null,null,null,null,null,null,null,null,null,null,278,"Pierce"]
[null,null,null,null,null,null,null,null,null,null,279,"Miller"]
[null,null,null,null,null,null,null,null,null,null,280,"MacGregor"]
[null,null,null,null,null,null,null,null,null,null,281,"McKenzie"]
[null,null,null,null,null,null,null,null,null,null,282,"Watkins"]
[null,null,null,null,null,null,null,null,null,null,283,"Heath"]
[null,null,null,null,null,null,null,null,null,null,284,"Kennedy"]
[null,null,null,null,null,null,null,null,null,null,285,"Carpenter"]
[null,null,null,null,null,null,null,null,null,null,286,"Connolly"]
[null,null,null,null,null,null,null,null,null,null,287,"MacLean"]
[null,null,null,null,null,null,null,null,null,null,288,"Harrington"]
[null,null,null,null,null,null,null,null,null,null,289,"Stanley"]
[null,null,null,null,null,null,null,null,null,null,290,"McIntyre"]
[null,null,null,null,null,null,null,null,null,null,291,"Palmer"]
[null,null,null,null,null,null,null,null,null,null,292,"Bradley"]
[null,null,null,null,null,null,null,null,null,null,293,"Reilly"]
[null,null,null,null,null,null,null,null,null,null,294,"Chase"]
[null,null,null,null,null,null,null,null,null,null,295,"Williamson"]
[null,null,null,null,null,null,null,null,null,null,296,"Fisher"]
[null,null,null,null,null,null,null,null,null,null,297,"Clarke"]
[null,null,null,null,null,null,null,null,null,null,298,"Drake"]
[null,null,null,null,null,null,null,null,null,null,299,"Ruiz"]
[null,null,null,null,null,null,null,null,null,null,300,"Schultz"]
[null,null,null,null,null,null,null,null,null,null,301,"Barnett"]
[null,null,null,null,null,null,null,null,null,null,302,"Vaughan"]
[null,null,null,null,null,null,null,null,null,null,303,"Barker"]
[null,null,null,null,null,null,null,null,null,null,304,"Ball"]
[null,null,null,null,null,null,null,null,null,null,305,"Hickey"]
[null,null,null,null,null,null,null,null,null,null,306,"Ramsey"]
[null,null,null,null,null,null,null,null,null,null,307,"Schroeder"]
[null,null,null,null,null,null,null,null,null,null,308,"Dean"]
[null,null,null,null,null,null,null,null,null,null,309,"Reeves"]
[null,null,null,null,null,null,null,null,null,null,310,"Calhoun"]
[null,null,null,null,null,null,null,null,null,null,311,"Bryant"]
[null,null,null,null,null,null,null,null,null,null,312,"McKay"]
[null,null,null,null,null,null,null,null,null,null,313,"Christie"]
[null,null,null,null,null,null,null,null,null,null,314,"Rankin"]
[null,null,null,null,null,null,null,null,null,null,315,"Hurley"]
[null,null,null,null,null,null,null,null,null,null,316,"Hahn"]
[null,null,null,null,null,null,null,null,null,null,317,"Callahan"]
[null,null,null,null,null,null,null,null,null,null,318,"Townsend"]
[null,null,null,null,null,null,null,null,null,null,319,"Dempsey"]
[null,null,null,null,null,null,null,null,null,null,320,"Cantrell"]
[null,null,null,null,null,null,null,null,null,null,321,"Stafford"]
[null,null,null,null,null,null,null,null,null,null,322,"Bradford"]
[null,null,null,null,null,null,null,null,null,null,323,"Reese"]
[null,null,null,null,null,null,null,null,null,null,324,"Gonzales"]
[null,null,null,null,null,null,null,null,null,null,325,"Ramos"]
[null,null,null,null,null,null,null,null,null,null,326,"Whitehead"]
[null,null,null,null,null,null,null,null,null,null,327,"McNamara"]
[null,null,null,null,null,null,null,null,null,null,328,"Greene"]
[null,null,null,null,null,null,null,null,null,null,329,"McGregor"]
[null,null,null,null,null,null,null,null,null,null,330,"Welch"]
[null,null,null,null,null,null,null,null,null,null,331,"Mahoney"]
[null,null,null,null,null,null,null,null,null,null,332,"Conway"]
[null,null,null,null,null,null,null,null,null,null,333,"Dwyer"]
[null,null,null,null,null,null,null,null,null,null,334,"Potter"]
[null,null,null,null,null,null,null,null,null,null,335,"Gibbs"]
[null,null,null,null,null,null,null,null,null,null,336,"Cowan"]
[null,null,null,null,null,null,null,null,null,null,337,"Hoffman"]
[null,null,null,null,null,null,null,null,null,null,338,"Shelton"]
[null,null,null,null,null,null,null,null,null,null,339,"McCabe"]
[null,null,null,null,null,null,null,null,null,null,340,"Lowe"]
[null,null,null,null,null,null,null,null,null,null,341,"Clayton"]
[null,null,null,null,null,null,null,null,null,null,342,"Gallegos"]
[null,null,null,null,null,null,null,null,null,null,343,"Strickland"]
[null,null,null,null,null,null,null,null,null,null,344,"Snyder"]
[null,null,null,null,null,null,null,null,null,null,345,"Pruitt"]
[null,null,null,null,null,null,null,null,null,null,346,"Griffin"]
[null,null,null,null,null,null,null,null,null,null,347,"Smith"]
[null,null,null,null,null,null,null,null,null,null,348,"Atkinson"]
[null,null,null,null,null,null,null,null,null,null,349,"Soto"]
[null,null,null,null,null,null,null,null,null,null,350,"McDermott"]
[null,null,null,null,null,null,null,null,null,null,351,"York"]
[null,null,null,null,null,null,null,null,null,null,352,"Hodges"]
[null,null,null,null,null,null,null,null,null,null,353,"Gorman"]
[null,null,null,null,null,null,null,null,null,null,354,"Berry"]
[null,null,null,null,null,null,null,null,null,null,355,"Blair"]
[null,null,null,null,null,null,null,null,null,null,356,"Sawyer"]
[null,null,null,null,null,null,null,null,null,null,357,"Hammond"]
[null,null,null,null,null,null,null,null,null,null,358,"Maher"]
[null,null,null,null,null,null,null,null,null,null,359,"Flanagan"]
[null,null,null,null,null,null,null,null,null,null,360,"Cross"]
[null,null,null,null,null,null,null,null,null,null,361,"Costello"]
[null,null,null,null,null,null,null,null,null,null,362,"Lyon"]
[null,null,null,null,null,null,null,null,null,null,363,"Corcoran"]
[null,null,null,null,null,null,null,null,null,null,364,"Underwood"]
[null,null,null,null,null,null,null,null,null,null,365,"McCracken"]
[null,null,null,null,null,null,null,null,null,null,366,"Russo"]
[null,null,null,null,null,null,null,null,null,null,367,"Griffith"]
[null,null,null,null,null,null,null,null,null,null,368,"Mitchell"]
[null,null,null,null,null,null,null,null,null,null,369,"Black"]
[null,null,null,null,null,null,null,null,null,null,370,"Skinner"]
[null,null,null,null,null,null,null,null,null,null,371,"Pearson"]
[null,null,null,null,null,null,null,null,null,null,372,"Pugh"]
[null,null,null,null,null,null,null,null,null,null,373,"Conley"]
[null,null,null,null,null,null,null,null,null,null,374,"Lancaster"]
[null,null,null,null,null,null,null,null,null,null,375,"Page"]
[null,null,null,null,null,null,null,null,null,null,376,"Roberts"]
[null,null,null,null,null,null,null,null,null,null,377,"Cochran"]
[null,null,null,null,null,null,null,null,null,null,378,"Blevins"]
[null,null,null,null,null,null,null,null,null,null,379,"Burgess"]
[null,null,null,null,null,null,null,null,null,null,380,"Roche"]
[null,null,null,null,null,null,null,null,null,null,381,"Horton"]
[null,null,null,null,null,null,null,null,null,null,382,"Lockhart"]
[null,null,null,null,null,null,null,null,null,null,383,"Lane"]
[null,null,null,null,null,null,null,null,null,null,384,"Frazier"]
[null,null,null,null,null,null,null,null,null,null,385,"Brewer"]
[null,null,null,null,null,null,null,null,null,null,386,"Ingram"]
[null,null,null,null,null,null,null,null,null,null,387,"Medina"]
[null,null,null,null,null,null,null,null,null,null,388,"Poole"]
[null,null,null,null,null,null,null,null,null,null,389,"Malone"]
[null,null,null,null,null,null,null,null,null,null,390,"Rodgers"]
[null,null,null,null,null,null,null,null,null,null,391,"Maynard"]
[null,null,null,null,null,null,null,null,null,null,392,"Buckley"]
[null,null,null,null,null,null,null,null,null,null,393,"MacLeod"]
[null,null,null,null,null,null,null,null,null,null,394,"Wilson"]
[null,null,null,null,null,null,null,null,null,null,395,"Powers"]
[null,null,null,null,null,null,null,null,null,null,396,"Pratt"]
[null,null,null,null,null,null,null,null,null,null,397,"Norris"]
[null,null,null,null,null,null,null,null,null,null,398,"Erickson"]
[null,null,null,null,null,null,null,null,null,null,399,"Hutchinson"]
[null,null,null,null,null,null,null,null,null,null,400,"Egan"]
[null,null,null,null,null,null,null,null,null,null,401,"Gomez"]
[null,null,null,null,null,null,null,null,null,null,402,"Garza"]
[null,null,null,null,null,null,null,null,null,null,403,"Sheehan"]
[null,null,null,null,null,null,null,null,null,null,404,"Donnelly"]
[null,null,null,null,null,null,null,null,null,null,405,"Caldwell"]
[null,null,null,null,null,null,null,null,null,null,406,"Diaz"]
[null,null,null,null,null,null,null,null,null,null,407,"Hale"]
[null,null,null,null,null,null,null,null,null,null,408,"Davis"]
[null,null,null,null,null,null,null,null,null,null,409,"Marsh"]
[null,null,null,null,null,null,null,null,null,null,410,"Cruz"]
[null,null,null,null,null,null,null,null,null,null,411,"McConnell"]
[null,null,null,null,null,null,null,null,null,null,412,"Morse"]
[null,null,null,null,null,null,null,null,null,null,413,"Barr"]
[null,null,null,null,null,null,null,null,null,null,414,"Franklin"]
[null,null,null,null,null,null,null,null,null,null,415,"McDonough"]
[null,null,null,null,null,null,null,null,null,null,416,"McMillan"]
[null,null,null,null,null,null,null,null,null,null,417,"Mooney"]
[null,null,null,null,null,null,null,null,null,null,418,"Ortega"]
[null,null,null,null,null,null,null,null,null,null,419,"Byrd"]
[null,null,null,null,null,null,null,null,null,null,420,"Love"]
[null,null,null,null,null,null,null,null,null,null,421,"Bruce"]
[null,null,null,null,null,null,null,null,null,null,422,"Dalton"]
[null,null,null,null,null,null,null,null,null,null,423,"Cannon"]
[null,null,null,null,null,null,null,null,null,null,424,"Greer"]
[null,null,null,null,null,null,null,null,null,null,425,"Wade"]
[null,null,null,null,null,null,null,null,null,null,426,"James"]
[null,null,null,null,null,null,null,null,null,null,427,"Johnson"]
[null,null,null,null,null,null,null,null,null,null,428,"Keating"]
[null,null,null,null,null,null,null,null,null,null,429,"Garrett"]
[null,null,null,null,null,null,null,null,null,null,430,"Maldonado"]
[null,null,null,null,null,null,null,null,null,null,431,"O'Leary"]
[null,null,null,null,null,null,null,null,null,null,432,"Wilkinson"]
[null,null,null,null,null,null,null,null,null,null,433,"Orr"]
[null,null,null,null,null,null,null,null,null,null,434,"Barton"]
[null,null,null,null,null,null,null,null,null,null,435,"Sanders"]
[null,null,null,null,null,null,null,null,null,null,436,"Ray"]
[null,null,null,null,null,null,null,null,null,null,437,"Newman"]
[null,null,null,null,null,null,null,null,null,null,438,"Coughlin"]
[null,null,null,null,null,null,null,null,null,null,439,"Chandler"]
[null,null,null,null,null,null,null,null,null,null,440,"Wood"]
[null,null,null,null,null,null,null,null,null,null,441,"Meyer"]
[null,null,null,null,null,null,null,null,null,null,442,"Daugherty"]
[null,null,null,null,null,null,null,null,null,null,443,"Baird"]
[null,null,null,null,null,null,null,null,null,null,444,"Pollard"]
[null,null,null,null,null,null,null,null,null,null,445,"Daly"]
[null,null,null,null,null,null,null,null,null,null,446,"Saunders"]
[null,null,null,null,null,null,null,null,null,null,447,"Smith"]
[null,null,null,null,null,null,null,null,null,null,448,"Larsen"]
[null,null,null,null,null,null,null,null,null,null,449,"Castillo"]
[null,null,null,null,null,null,null,null,null,null,450,"Padilla"]
[null,null,null,null,null,null,null,null,null,null,451,"Sutherland"]
[null,null,null,null,null,null,null,null,null,null,452,"Schwartz"]
[null,null,null,null,null,null,null,null,null,null,453,"Goodwin"]
[null,null,null,null,null,null,null,null,null,null,454,"Monroe"]
[null,null,null,null,null,null,null,null,null,null,455,"Leblanc"]
[null,null,null,null,null,null,null,null,null,null,456,"Henry"]
[null,null,null,null,null,null,null,null,null,null,457,"Tobin"]
[null,null,null,null,null,null,null,null,null,null,458,"Cullen"]
[null,null,null,null,null,null,null,null,null,null,459,"Shaw"]
[null,null,null,null,null,null,null,null,null,null,460,"McBride"]
[null,null,null,null,null,null,null,null,null,null,461,"Sandoval"]
[null,null,null,null,null,null,null,null,null,null,462,"Woodward"]
[null,null,null,null,null,null,null,null,null,null,463,"McHugh"]
[null,null,null,null,null,null,null,null,null,null,464,"Jarvis"]
[null,null,null,null,null,null,null,null,null,null,465,"Hoover"]
[null,null,null,null,null,null,null,null,null,null,466,"Kearney"]
[null,null,null,null,null,null,null,null,null,null,467,"Weeks"]
[null,null,null,null,null,null,null,null,null,null,468,"Bauer"]
[null,null,null,null,null,null,null,null,null,null,469,"McFadden"]
[null,null,null,null,null,null,null,null,null,null,470,"MacKenzie"]
[null,null,null,null,null,null,null,null,null,null,471,"Pollock"]
[null,null,null,null,null,null,null,null,null,null,472,"McKinnon"]
[null,null,null,null,null,null,null,null,null,null,473,"McGinnis"]
[null,null,null,null,null,null,null,null,null,null,474,"Whitaker"]
[null,null,null,null,null,null,null,null,null,null,475,"McCall"]
[null,null,null,null,null,null,null,null,null,null,476,"Murphy"]
[null,null,null,null,null,null,null,null,null,null,477,"Flores"]
[null,null,null,null,null,null,null,null,null,null,478,"Wentworth"]
[null,null,null,null,null,null,null,null,null,null,479,"Kirby"]
[null,null,null,null,null,null,null,null,null,null,480,"Maloney"]
[null,null,null,null,null,null,null,null,null,null,481,"Ashby"]
[null,null,null,null,null,null,null,null,null,null,482,"Faulkner"]
[null,null,null,null,null,null,null,null,null,null,483,"Ford"]
[null,null,null,null,null,null,null,null,null,null,484,"Daley"]
[null,null,null,null,null,null,null,null,null,null,485,"Lindsey"]
[null,null,null,null,null,null,null,null,null,null,486,"Patton"]
[null,null,null,null,null,null,null,null,null,null,487,"Zimmerman"]
[null,null,null,null,null,null,null,null,null,null,488,"Salazar"]
[null,null,null,null,null,null,null,null,null,null,489,"Houston"]
[null,null,null,null,null,null,null,null,null,null,490,"Regan"]
[null,null,null,null,null,null,null,null,null,null,491,"Manning"]
[null,null,null,null,null,null,null,null,null,null,492,"Ayers"]
[null,null,null,null,null,null,null,null,null,null,493,"Neal"]
[null,null,null,null,null,null,null,null,null,null,494,"Nash"]
[null,null,null,null,null,null,null,null,null,null,495,"Graves"]
[null,null,null,null,null,null,null,null,null,null,496,"Galloway"]
[null,null,null,null,null,null,null,null,null,null,497,"Kirkpatrick"]
[null,null,null,null,null,null,null,null,null,null,498,"Purcell"]
[null,null,null,null,null,null,null,null,null,null,499,"Weaver"]
[null,null,null,null,null,null,null,null,null,null,500,"Walton"]
[null,null,null,null,null,null,null,null,null,null,501,"Griffin"]
[null,null,null,null,null,null,null,null,null,null,502,"Jimenez"]
[null,null,null,null,null,null,null,null,null,null,503,"Cobb"]
[null,null,null,null,null,null,null,null,null,null,504,"Parks"]
[null,null,null,null,null,null,null,null,null,null,505,"O'Neal"]
[null,null,null,null,null,null,null,null,null,null,506,"McDougall"]
[null,null,null,null,null,null,null,null,null,null,507,"Frost"]
[null,null,null,null,null,null,null,null,null,null,508,"Hensley"]
[null,null,null,null,null,null,null,null,null,null,509,"Malloy"]
[null,null,null,null,null,null,null,null,null,null,510,"Duffy"]
[null,null,null,null,null,null,null,null,null,null,511,"Pereira"]
[null,null,null,null,null,null,null,null,null,null,512,"Steele"]
[null,null,null,null,null,null,null,null,null,null,513,"Porter"]
[null,null,null,null,null,null,null,null,null,null,514,"Boyd"]
[null,null,null,null,null,null,null,null,null,null,515,"Todd"]
[null,null,null,null,null,null,null,null,null,null,516,"Howe"]
[null,null,null,null,null,null,null,null,null,null,517,"Coffey"]
[null,null,null,null,null,null,null,null,null,null,518,"Beach"]
[null,null,null,null,null,null,null,null,null,null,519,"Bentley"]
[null,null,null,null,null,null,null,null,null,null,520,"Marshall"]
[null,null,null,null,null,null,null,null,null,null,521,"Dunlap"]
[null,null,null,null,null,null,null,null,null,null,522,"McLain"]
[null,null,null,null,null,null,null,null,null,null,523,"Weber"]
[null,null,null,null,null,null,null,null,null,null,524,"Daniels"]
[null,null,null,null,null,null,null,null,null,null,525,"Bond"]
[null,null,null,null,null,null,null,null,null,null,526,"Ballard"]
[null,null,null,null,null,null,null,null,null,null,527,"McCormack"]
[null,null,null,null,null,null,null,null,null,null,528,"Patterson"]
[null,null,null,null,null,null,null,null,null,null,529,"McGarry"]
[null,null,null,null,null,null,null,null,null,null,530,"Porter"]
[null,null,null,null,null,null,null,null,null,null,531,"Crowley"]
[null,null,null,null,null,null,null,null,null,null,532,"O'Hara"]
[null,null,null,null,null,null,null,null,null,null,533,"McAllister"]
[null,null,null,null,null,null,null,null,null,null,534,"Pope"]
[null,null,null,null,null,null,null,null,null,null,535,"Lamb"]
[null,null,null,null,null,null,null,null,null,null,536,"Oliver"]
[null,null,null,null,null,null,null,null,null,null,537,"Forbes"]
[null,null,null,null,null,null,null,null,null,null,538,"Harding"]
[null,null,null,null,null,null,null,null,null,null,539,"Adkins"]
[null,null,null,null,null,null,null,null,null,null,540,"Johnston"]
[null,null,null,null,null,null,null,null,null,null,541,"Ward"]
[null,null,null,null,null,null,null,null,null,null,542,"Waddell"]
[null,null,null,null,null,null,null,null,null,null,543,"Suarez"]
[null,null,null,null,null,null,null,null,null,null,544,"Cahill"]
[null,null,null,null,null,null,null,null,null,null,545,"McWilliams"]
[null,null,null,null,null,null,null,null,null,null,546,"Templeton"]
[null,null,null,null,null,null,null,null,null,null,547,"Bowen"]
[null,null,null,null,null,null,null,null,null,null,548,"Wyatt"]
[null,null,null,null,null,null,null,null,null,null,549,"Schmitt"]
[null,null,null,null,null,null,null,null,null,null,550,"Doherty"]
[null,null,null,null,null,null,null,null,null,null,551,"Carney"]
[null,null,null,null,null,null,null,null,null,null,552,"Coyle"]
[null,null,null,null,null,null,null,null,null,null,553,"Stokes"]
[null,null,null,null,null,null,null,null,null,null,554,"Hurst"]
[null,null,null,null,null,null,null,null,null,null,555,"O'Rourke"]
[null,null,null,null,null,null,null,null,null,null,556,"Dolan"]
[null,null,null,null,null,null,null,null,null,null,557,"Archer"]
[null,null,null,null,null,null,null,null,null,null,558,"Klein"]
[null,null,null,null,null,null,null,null,null,null,559,"Willis"]
[null,null,null,null,null,null,null,null,null,null,560,"Jordan"]
[null,null,null,null,null,null,null,null,null,null,561,"Bartlett"]
[null,null,null,null,null,null,null,null,null,null,562,"Dawson"]
[null,null,null,null,null,null,null,null,null,null,563,"Holden"]
[null,null,null,null,null,null,null,null,null,null,564,"Lawson"]
[null,null,null,null,null,null,null,null,null,null,565,"Blackburn"]
[null,null,null,null,null,null,null,null,null,null,566,"Rollins"]
[null,null,null,null,null,null,null,null,null,null,567,"MacPherson"]
[null,null,null,null,null,null,null,null,null,null,568,"Gutierrez"]
[null,null,null,null,null,null,null,null,null,null,569,"Leach"]
[null,null,null,null,null,null,null,null,null,null,570,"Sparks"]
[null,null,null,null,null,null,null,null,null,null,571,"McNally"]
[null,null,null,null,null,null,null,null,null,null,572,"McNulty"]
[null,null,null,null,null,null,null,null,null,null,573,"Hewitt"]
[null,null,null,null,null,null,null,null,null,null,574,"Larson"]
[null,null,null,null,null,null,null,null,null,null,575,"Bird"]
[null,null,null,null,null,null,null,null,null,null,576,"Holloway"]
[null,null,null,null,null,null,null,null,null,null,577,"Short"]
[null,null,null,null,null,null,null,null,null,null,578,"Bailey"]
[null,null,null,null,null,null,null,null,null,null,579,"Quinlan"]
[null,null,null,null,null,null,null,null,null,null,580,"Parrish"]
[null,null,null,null,null,null,null,null,null,null,581,"Moreno"]
[null,null,null,null,null,null,null,null,null,null,582,"Warner"]
[null,null,null,null,null,null,null,null,null,null,583,"Kidd"]
[null,null,null,null,null,null,null,null,null,null,584,"Stevenson"]
[null,null,null,null,null,null,null,null,null,null,585,"Morrow"]
[null,null,null,null,null,null,null,null,null,null,586,"McCurdy"]
[null,null,null,null,null,null,null,null,null,null,587,"Curran"]
[null,null,null,null,null,null,null,null,null,null,588,"Preston"]
[null,null,null,null,null,null,null,null,null,null,589,"Curtis"]
[null,null,null,null,null,null,null,null,null,null,590,"McKinney"]
[null,null,null,null,null,null,null,null,null,null,591,"Hagan"]
[null,null,null,null,null,null,null,null,null,null,592,"Corbett"]
[null,null,null,null,null,null,null,null,null,null,593,"Power"]
[null,null,null,null,null,null,null,null,null,null,594,"Hess"]
[null,null,null,null,null,null,null,null,null,null,595,"Alvarez"]
[null,null,null,null,null,null,null,null,null,null,596,"Carlson"]
[null,null,null,null,null,null,null,null,null,null,597,"Gunn"]
[null,null,null,null,null,null,null,null,null,null,598,"Ware"]
[null,null,null,null,null,null,null,null,null,null,599,"Daniel"]
[null,null,null,null,null,null,null,null,null,null,600,"Law"]
[null,null,null,null,null,null,null,null,null,null,601,"Watson"]
[null,null,null,null,null,null,null,null,null,null,602,"Miles"]
[null,null,null,null,null,null,null,null,null,null,603,"Stuart"]
[null,null,null,null,null,null,null,null,null,null,604,"Madden"]
[null,null,null,null,null,null,null,null,null,null,605,"Flood"]
[null,null,null,null,null,null,null,null,null,null,606,"Freeman"]
[null,null,null,null,null,null,null,null,null,null,607,"Glass"]
[null,null,null,null,null,null,null,null,null,null,608,"Salisbury"]
[null,null,null,null,null,null,null,null,null,null,609,"Emery"]
[null,null,null,null,null,null,null,null,null,null,610,"McNeil"]
[null,null,null,null,null,null,null,null,null,null,611,"Thorpe"]
[null,null,null,null,null,null,null,null,null,null,612,"Bolton"]
[null,null,null,null,null,null,null,null,null,null,613,"Barry"]
[null,null,null,null,null,null,null,null,null,null,614,"Shepherd"]
[null,null,null,null,null,null,null,null,null,null,615,"Rees"]
[null,null,null,null,null,null,null,null,null,null,616,"McDaniel"]
[null,null,null,null,null,null,null,null,null,null,617,"Figueroa"]
[null,null,null,null,null,null,null,null,null,null,618,"Hollis"]
[null,null,null,null,null,null,null,null,null,null,619,"Cooke"]
[null,null,null,null,null,null,null,null,null,null,620,"Trujillo"]
[null,null,null,null,null,null,null,null,null,null,621,"Rooney"]
[null,null,null,null,null,null,null,null,null,null,622,"Whalen"]
[null,null,null,null,null,null,null,null,null,null,623,"Haley"]
[null,null,null,null,null,null,null,null,null,null,624,"Napier"]
[null,null,null,null,null,null,null,null,null,null,625,"Moser"]
[null,null,null,null,null,null,null,null,null,null,626,"McDowell"]
[null,null,null,null,null,null,null,null,null,null,627,"Hood"]
[null,null,null,null,null,null,null,null,null,null,628,"Blake"]
[null,null,null,null,null,null,null,null,null,null,629,"Vega"]
[null,null,null,null,null,null,null,null,null,null,630,"Kane"]
[null,null,null,null,null,null,null,null,null,null,631,"Stack"]
[null,null,null,null,null,null,null,null,null,null,632,"Clay"]
[null,null,null,null,null,null,null,null,null,null,633,"Keene"]
[null,null,null,null,null,null,null,null,null,null,634,"Coleman"]
[null,null,null,null,null,null,null,null,null,null,635,"Sheridan"]
[null,null,null,null,null,null,null,null,null,null,636,"Farley"]
[null,null,null,null,null,null,null,null,null,null,637,"Combs"]
[null,null,null,null,null,null,null,null,null,null,638,"Gill"]
[null,null,null,null,null,null,null,null,null,null,639,"McManus"]
[null,null,null,null,null,null,null,null,null,null,640,"Bain"]
[null,null,null,null,null,null,null,null,null,null,641,"Kent"]
[null,null,null,null,null,null,null,null,null,null,642,"McCulloch"]
[null,null,null,null,null,null,null,null,null,null,643,"O'Keefe"]
[null,null,null,null,null,null,null,null,null,null,644,"Davidson"]
[null,null,null,null,null,null,null,null,null,null,645,"Crabtree"]
[null,null,null,null,null,null,null,null,null,null,646,"Andersen"]
[null,null,null,null,null,null,null,null,null,null,647,"Lindsay"]
[null,null,null,null,null,null,null,null,null,null,648,"Donahue"]
[null,null,null,null,null,null,null,null,null,null,649,"Dowd"]
[null,null,null,null,null,null,null,null,null,null,650,"Bennett"]
[null,null,null,null,null,null,null,null,null,null,651,"Compton"]
[null,null,null,null,null,null,null,null,null,null,652,"Boyd"]
[null,null,null,null,null,null,null,null,null,null,653,"Fagan"]
[null,null,null,null,null,null,null,null,null,null,654,"Adair"]
[null,null,null,null,null,null,null,null,null,null,655,"Jacobs"]
[null,null,null,null,null,null,null,null,null,null,656,"Wiley"]
[null,null,null,null,null,null,null,null,null,null,657,"McElroy"]
[null,null,null,null,null,null,null,null,null,null,658,"Munoz"]
[null,null,null,null,null,null,null,null,null,null,659,"O'Neil"]
[null,null,null,null,null,null,null,null,null,null,660,"Kilgore"]
[null,null,null,null,null,null,null,null,null,null,661,"Grady"]
[null,null,null,null,null,null,null,null,null,null,662,"Hutchison"]
[null,null,null,null,null,null,null,null,null,null,663,"O'Grady"]
[null,null,null,null,null,null,null,null,null,null,664,"Roy"]
[null,null,null,null,null,null,null,null,null,null,665,"Boone"]
[null,null,null,null,null,null,null,null,null,null,666,"Holt"]
[null,null,null,null,null,null,null,null,null,null,667,"Silva"]
[null,null,null,null,null,null,null,null,null,null,668,"Dobson"]
[null,null,null,null,null,null,null,null,null,null,669,"Cooley"]
[null,null,null,null,null,null,null,null,null,null,670,"Hartley"]
[null,null,null,null,null,null,null,null,null,null,671,"Kinney"]
[null,null,null,null,null,null,null,null,null,null,672,"McGraw"]
[null,null,null,null,null,null,null,null,null,null,673,"Schofield"]
[null,null,null,null,null,null,null,null,null,null,674,"Austin"]
[null,null,null,null,null,null,null,null,null,null,675,"Levesque"]
[null,null,null,null,null,null,null,null,null,null,676,"Woodard"]
[null,null,null,null,null,null,null,null,null,null,677,"Tierney"]
[null,null,null,null,null,null,null,null,null,null,678,"Smart"]
[null,null,null,null,null,null,null,null,null,null,679,"McCain"]
[null,null,null,null,null,null,null,null,null,null,680,"Fischer"]
[null,null,null,null,null,null,null,null,null,null,681,"Finch"]
[null,null,null,null,null,null,null,null,null,null,682,"Fallon"]
[null,null,null,null,null,null,null,null,null,null,683,"Kehoe"]
[null,null,null,null,null,null,null,null,null,null,684,"Greenwood"]
[null,null,null,null,null,null,null,null,null,null,685,"Tennant"]
[null,null,null,null,null,null,null,null,null,null,686,"Huffman"]
[null,null,null,null,null,null,null,null,null,null,687,"McQueen"]
[null,null,null,null,null,null,null,null,null,null,688,"Leslie"]
[null,null,null,null,null,null,null,null,null,null,689,"Ziegler"]
[null,null,null,null,null,null,null,null,null,null,690,"Grantham"]
[null,null,null,null,null,null,null,null,null,null,691,"Floyd"]
[null,null,null,null,null,null,null,null,null,null,692,"Wright"]
[null,null,null,null,null,null,null,null,null,null,693,"Halsey"]
[null,null,null,null,null,null,null,null,null,null,694,"Fanning"]
[null,null,null,null,null,null,null,null,null,null,695,"Dickey"]
[null,null,null,null,null,null,null,null,null,null,696,"Velez"]
[null,null,null,null,null,null,null,null,null,null,697,"Gibbons"]
[null,null,null,null,null,null,null,null,null,null,698,"Clifford"]
[null,null,null,null,null,null,null,null,null,null,699,"Beasley"]
[null,null,null,null,null,null,null,null,null,null,700,"Pike"]
[null,null,null,null,null,null,null,null,null,null,701,"McGee"]
[null,null,null,null,null,null,null,null,null,null,702,"Maurer"]
[null,null,null,null,null,null,null,null,null,null,703,"Maxwell"]
[null,null,null,null,null,null,null,null,null,null,704,"Reid"]
[null,null,null,null,null,null,null,null,null,null,705,"Humphrey"]
[null,null,null,null,null,null,null,null,null,null,706,"Rafferty"]
[null,null,null,null,null,null,null,null,null,null,707,"Davidson"]
[null,null,null,null,null,null,null,null,null,null,708,"Carr"]
[null,null,null,null,null,null,null,null,null,null,709,"Kenney"]
[null,null,null,null,null,null,null,null,null,null,710,"Upton"]
[null,null,null,null,null,null,null,null,null,null,711,"Ralston"]
[null,null,null,null,null,null,null,null,null,null,712,"Hickman"]
[null,null,null,null,null,null,null,null,null,null,713,"Finn"]
[null,null,null,null,null,null,null,null,null,null,714,"Aguirre"]
[null,null,null,null,null,null,null,null,null,null,715,"Harvey"]
[null,null,null,null,null,null,null,null,null,null,716,"Shields"]
[null,null,null,null,null,null,null,null,null,null,717,"Butcher"]
[null,null,null,null,null,null,null,null,null,null,718,"Massey"]
[null,null,null,null,null,null,null,null,null,null,719,"McDaniel"]
[null,null,null,null,null,null,null,null,null,null,720,"Allen"]
[null,null,null,null,null,null,null,null,null,null,721,"Ashworth"]
[null,null,null,null,null,null,null,null,null,null,722,"McCarty"]
[null,null,null,null,null,null,null,null,null,null,723,"Waugh"]
[null,null,null,null,null,null,null,null,null,null,724,"Peacock"]
[null,null,null,null,null,null,null,null,null,null,725,"Koenig"]
[null,null,null,null,null,null,null,null,null,null,726,"Strong"]
[null,null,null,null,null,null,null,null,null,null,727,"Dominguez"]
[null,null,null,null,null,null,null,null,null,null,728,"Garrison"]
[null,null,null,null,null,null,null,null,null,null,729,"Munro"]
[null,null,null,null,null,null,null,null,null,null,730,"Briggs"]
[null,null,null,null,null,null,null,null,null,null,731,"Nunez"]
[null,null,null,null,null,null,null,null,null,null,732,"May"]
[null,null,null,null,null,null,null,null,null,null,733,"Burnham"]
[null,null,null,null,null,null,null,null,null,null,734,"Cormier"]
[null,null,null,null,null,null,null,null,null,null,735,"Donaldson"]
[null,null,null,null,null,null,null,null,null,null,736,"Mendoza"]
[null,null,null,null,null,null,null,null,null,null,737,"Coyne"]
[null,null,null,null,null,null,null,null,null,null,738,"Benton"]
[null,null,null,null,null,null,null,null,null,null,739,"House"]
[null,null,null,null,null,null,null,null,null,null,740,"Cardenas"]
[null,null,null,null,null,null,null,null,null,null,741,"Eaton"]
[null,null,null,null,null,null,null,null,null,null,742,"Matthews"]
[null,null,null,null,null,null,null,null,null,null,743,"Rossi"]
[null,null,null,null,null,null,null,null,null,null,744,"Pennington"]
[null,null,null,null,null,null,null,null,null,null,745,"Baxter"]
[null,null,null,null,null,null,null,null,null,null,746,"Fernandez"]
[null,null,null,null,null,null,null,null,null,null,747,"Gillespie"]
[null,null,null,null,null,null,null,null,null,null,748,"Peterson"]
[null,null,null,null,null,null,null,null,null,null,749,"Hastings"]
[null,null,null,null,null,null,null,null,null,null,750,"Allison"]
[null,null,null,null,null,null,null,null,null,null,751,"Moore"]
[null,null,null,null,null,null,null,null,null,null,752,"Guzman"]
[null,null,null,null,null,null,null,null,null,null,753,"Conrad"]
[null,null,null,null,null,null,null,null,null,null,754,"Nielsen"]
[null,null,null,null,null,null,null,null,null,null,755,"Kirkland"]
[null,null,null,null,null,null,null,null,null,null,756,"English"]
[null,null,null,null,null,null,null,null,null,null,757,"Hancock"]
[null,null,null,null,null,null,null,null,null,null,758,"Hull"]
[null,null,null,null,null,null,null,null,null,null,759,"Bragg"]
[null,null,null,null,null,null,null,null,null,null,760,"Hooper"]
[null,null,null,null,null,null,null,null,null,null,761,"Houghton"]
[null,null,null,null,null,null,null,null,null,null,762,"Porterfield"]
[null,null,null,null,null,null,null,null,null,null,763,"Robb"]
[null,null,null,null,null,null,null,null,null,null,764,"Timmons"]
[null,null,null,null,null,null,null,null,null,null,765,"Olson"]
[null,null,null,null,null,null,null,null,null,null,766,"Shea"]
[null,null,null,null,null,null,null,null,null,null,767,"Melton"]
[null,null,null,null,null,null,null,null,null,null,768,"Hanley"]
[null,null,null,null,null,null,null,null,null,null,769,"Gilliam"]
[null,null,null,null,null,null,null,null,null,null,770,"Kendall"]
[null,null,null,null,null,null,null,null,null,null,771,"Middleton"]
[null,null,null,null,null,null,null,null,null,null,772,"Forsyth"]
[null,null,null,null,null,null,null,null,null,null,773,"Monahan"]
[null,null,null,null,null,null,null,null,null,null,774,"Collier"]
[null,null,null,null,null,null,null,null,null,null,775,"Cassidy"]
[null,null,null,null,null,null,null,null,null,null,776,"Kincaid"]
[null,null,null,null,null,null,null,null,null,null,777,"O'Sullivan"]
[null,null,null,null,null,null,null,null,null,null,778,"Snow"]
[null,null,null,null,null,null,null,null,null,null,779,"Goodman"]
[null,null,null,null,null,null,null,null,null,null,780,"Sears"]
[null,null,null,null,null,null,null,null,null,null,781,"McCoy"]
[null,null,null,null,null,null,null,null,null,null,782,"Downey"]
[null,null,null,null,null,null,null,null,null,null,783,"Delaney"]
[null,null,null,null,null,null,null,null,null,null,784,"Hopper"]
[null,null,null,null,null,null,null,null,null,null,785,"Randall"]
[null,null,null,null,null,null,null,null,null,null,786,"McNeill"]
[null,null,null,null,null,null,null,null,null,null,787,"Carson"]
[null,null,null,null,null,null,null,null,null,null,788,"Banks"]
[null,null,null,null,null,null,null,null,null,null,789,"McClellan"]
[null,null,null,null,null,null,null,null,null,null,790,"Davenport"]
[null,null,null,null,null,null,null,null,null,null,791,"Mattingly"]
[null,null,null,null,null,null,null,null,null,null,792,"Glover"]
[null,null,null,null,null,null,null,null,null,null,793,"Woodruff"]
[null,null,null,null,null,null,null,null,null,null,794,"Hubbard"]
[null,null,null,null,null,null,null,null,null,null,795,"Day"]
[null,null,null,null,null,null,null,null,null,null,796,"Larkin"]
[null,null,null,null,null,null,null,null,null,null,797,"Brown"]
[null,null,null,null,null,null,null,null,null,null,798,"Driscoll"]
[null,null,null,null,null,null,null,null,null,null,799,"Batchelor"]
[null,null,null,null,null,null,null,null,null,null,800,"Dudley"]
[null,null,null,null,null,null,null,null,null,null,801,"Stanton"]
[null,null,null,null,null,null,null,null,null,null,802,"Collins"]
[null,null,null,null,null,null,null,null,null,null,803,"Holman"]
[null,null,null,null,null,null,null,null,null,null,804,"Hackett"]
[null,null,null,null,null,null,null,null,null,null,805,"Lamont"]
[null,null,null,null,null,null,null,null,null,null,806,"Hampton"]
[null,null,null,null,null,null,null,null,null,null,807,"Noble"]
[null,null,null,null,null,null,null,null,null,null,808,"Beebe"]
[null,null,null,null,null,null,null,null,null,null,809,"Connell"]
[null,null,null,null,null,null,null,null,null,null,810,"Stout"]
[null,null,null,null,null,null,null,null,null,null,811,"Lake"]
[null,null,null,null,null,null,null,null,null,null,812,"Sherwood"]
[null,null,null,null,null,null,null,null,null,null,813,"Neville"]
[null,null,null,null,null,null,null,null,null,null,814,"Kenny"]
[null,null,null,null,null,null,null,null,null,null,815,"Piper"]
[null,null,null,null,null,null,null,null,null,null,816,"Koch"]
[null,null,null,null,null,null,null,null,null,null,817,"Hay"]
[null,null,null,null,null,null,null,null,null,null,818,"Dalrymple"]
[null,null,null,null,null,null,null,null,null,null,819,"Santiago"]
[null,null,null,null,null,null,null,null,null,null,820,"Peck"]
[null,null,null,null,null,null,null,null,null,null,821,"Pritchard"]
[null,null,null,null,null,null,null,null,null,null,822,"Monaghan"]
[null,null,null,null,null,null,null,null,null,null,823,"Dugan"]
[null,null,null,null,null,null,null,null,null,null,824,"Browne"]
[null,null,null,null,null,null,null,null,null,null,825,"Sims"]
[null,null,null,null,null,null,null,null,null,null,826,"Garner"]
[null,null,null,null,null,null,null,null,null,null,827,"Harris"]
[null,null,null,null,null,null,null,null,null,null,828,"Crockett"]
[null,null,null,null,null,null,null,null,null,null,829,"McMahan"]
[null,null,null,null,null,null,null,null,null,null,830,"Whittaker"]
[null,null,null,null,null,null,null,null,null,null,831,"Fournier"]
[null,null,null,null,null,null,null,null,null,null,832,"Leonard"]
[null,null,null,null,null,null,null,null,null,null,833,"Castro"]
[null,null,null,null,null,null,null,null,null,null,834,"McCollum"]
[null,null,null,null,null,null,null,null,null,null,835,"Hays"]
[null,null,null,null,null,null,null,null,null,null,836,"Benson"]
[null,null,null,null,null,null,null,null,null,null,837,"Proctor"]
[null,null,null,null,null,null,null,null,null,null,838,"Fry"]
[null,null,null,null,null,null,null,null,null,null,839,"Stephenson"]
[null,null,null,null,null,null,null,null,null,null,840,"Healy"]
[null,null,null,null,null,null,null,null,null,null,841,"Slattery"]
[null,null,null,null,null,null,null,null,null,null,842,"Slaughter"]
[null,null,null,null,null,null,null,null,null,null,843,"Norwood"]
[null,null,null,null,null,null,null,null,null,null,844,"Tucker"]
[null,null,null,null,null,null,null,null,null,null,845,"Holder"]
[null,null,null,null,null,null,null,null,null,null,846,"Huber"]
[null,null,null,null,null,null,null,null,null,null,847,"Haynes"]
[null,null,null,null,null,null,null,null,null,null,848,"Rasmussen"]
[null,null,null,null,null,null,null,null,null,null,849,"Clancy"]
[null,null,null,null,null,null,null,null,null,null,850,"Munn"]
[null,null,null,null,null,null,null,null,null,null,851,"Breen"]
[null,null,null,null,null,null,null,null,null,null,852,"Ross"]
[null,null,null,null,null,null,null,null,null,null,853,"Jordan"]
[null,null,null,null,null,null,null,null,null,null,854,"Crouch"]
[null,null,null,null,null,null,null,null,null,null,855,"Lewis"]
[null,null,null,null,null,null,null,null,null,null,856,"Alvarado"]
[null,null,null,null,null,null,null,null,null,null,857,"Milne"]
[null,null,null,null,null,null,null,null,null,null,858,"Galbraith"]
[null,null,null,null,null,null,null,null,null,null,859,"Edmondson"]
[null,null,null,null,null,null,null,null,null,null,860,"Holbrook"]
[null,null,null,null,null,null,null,null,null,null,861,"McCartney"]
[null,null,null,null,null,null,null,null,null,null,862,"Church"]
[null,null,null,null,null,null,null,null,null,null,863,"Robles"]
[null,null,null,null,null,null,null,null,null,null,864,"Meier"]
[null,null,null,null,null,null,null,null,null,null,865,"Wooten"]
[null,null,null,null,null,null,null,null,null,null,866,"Hardy"]
[null,null,null,null,null,null,null,null,null,null,867,"Woods"]
[null,null,null,null,null,null,null,null,null,null,868,"McClanahan"]
[null,null,null,null,null,null,null,null,null,null,869,"Gregory"]
[null,null,null,null,null,null,null,null,null,null,870,"Spence"]
[null,null,null,null,null,null,null,null,null,null,871,"Herndon"]
[null,null,null,null,null,null,null,null,null,null,872,"Phillips"]
[null,null,null,null,null,null,null,null,null,null,873,"Trevino"]
[null,null,null,null,null,null,null,null,null,null,874,"George"]
[null,null,null,null,null,null,null,null,null,null,875,"Meadows"]
[null,null,null,null,null,null,null,null,null,null,876,"O'Reilly"]
[null,null,null,null,null,null,null,null,null,null,877,"Copeland"]
[null,null,null,null,null,null,null,null,null,null,878,"Hatch"]
[null,null,null,null,null,null,null,null,null,null,879,"Chaney"]
[null,null,null,null,null,null,null,null,null,null,880,"Ogden"]
[null,null,null,null,null,null,null,null,null,null,881,"Hanna"]
[null,null,null,null,null,null,null,null,null,null,882,"Gentry"]
[null,null,null,null,null,null,null,null,null,null,883,"McKinley"]
[null,null,null,null,null,null,null,null,null,null,884,"Puckett"]
[null,null,null,null,null,null,null,null,null,null,885,"Vance"]
[null,null,null,null,null,null,null,null,null,null,886,"Vargas"]
[null,null,null,null,null,null,null,null,null,null,887,"Keegan"]
[null,null,null,null,null,null,null,null,null,null,888,"Wise"]
[null,null,null,null,null,null,null,null,null,null,889,"Abbott"]
[null,null,null,null,null,null,null,null,null,null,890,"Hayden"]
[null,null,null,null,null,null,null,null,null,null,891,"Meredith"]
[null,null,null,null,null,null,null,null,null,null,892,"Drew"]
[null,null,null,null,null,null,null,null,null,null,893,"Beck"]
[null,null,null,null,null,null,null,null,null,null,894,"Dickson"]
[null,null,null,null,null,null,null,null,null,null,895,"MacMillan"]
[null,null,null,null,null,null,null,null,null,null,896,"McCleary"]
[null,null,null,null,null,null,null,null,null,null,897,"Murdock"]
[null,null,null,null,null,null,null,null,null,null,898,"Christian"]
[null,null,null,null,null,null,null,null,null,null,899,"Kemp"]
[null,null,null,null,null,null,null,null,null,null,900,"McKee"]
[null,null,null,null,null,null,null,null,null,null,901,"Vogel"]
[null,null,null,null,null,null,null,null,null,null,902,"Abernathy"]
[null,null,null,null,null,null,null,null,null,null,903,"Keller"]
[null,null,null,null,null,null,null,null,null,null,904,"Fitzsimmons"]
[null,null,null,null,null,null,null,null,null,null,905,"Bender"]
[null,null,null,null,null,null,null,null,null,null,906,"Kearns"]
[null,null,null,null,null,null,null,null,null,null,907,"Arsenault"]
[null,null,null,null,null,null,null,null,null,null,908,"Finnegan"]
[null,null,null,null,null,null,null,null,null,null,909,"Sloan"]
[null,null,null,null,null,null,null,null,null,null,910,"Bullock"]
[null,null,null,null,null,null,null,null,null,null,911,"Silva"]
[null,null,null,null,null,null,null,null,null,null,912,"Blackwell"]
[null,null,null,null,null,null,null,null,null,null,913,"Reynolds"]
[null,null,null,null,null,null,null,null,null,null,914,"Noonan"]
[null,null,null,null,null,null,null,null,null,null,915,"Mueller"]
[null,null,null,null,null,null,null,null,null,null,916,"North"]
[null,null,null,null,null,null,null,null,null,null,917,"Duckworth"]
[null,null,null,null,null,null,null,null,null,null,918,"Ewing"]
[null,null,null,null,null,null,null,null,null,null,919,"McCaffrey"]
[null,null,null,null,null,null,null,null,null,null,920,"Jorgensen"]
[null,null,null,null,null,null,null,null,null,null,921,"Serrano"]
[null,null,null,null,null,null,null,null,null,null,922,"Fox"]
[null,null,null,null,null,null,null,null,null,null,923,"Miranda"]
[null,null,null,null,null,null,null,null,null,null,924,"Sharpe"]
[null,null,null,null,null,null,null,null,null,null,925,"MacKinnon"]
[null,null,null,null,null,null,null,null,null,null,926,"Prince"]
[null,null,null,null,null,null,null,null,null,null,927,"Matthews"]
[null,null,null,null,null,null,null,null,null,null,928,"Gleason"]
[null,null,null,null,null,null,null,null,null,null,929,"Kelleher"]
[null,null,null,null,null,null,null,null,null,null,930,"Dickinson"]
[null,null,null,null,null,null,null,null,null,null,931,"Medeiros"]
[null,null,null,null,null,null,null,null,null,null,932,"Yates"]
[null,null,null,null,null,null,null,null,null,null,933,"Cochrane"]
[null,null,null,null,null,null,null,null,null,null,934,"Merritt"]
[null,null,null,null,null,null,null,null,null,null,935,"Grace"]
[null,null,null,null,null,null,null,null,null,null,936,"Fitch"]
[null,null,null,null,null,null,null,null,null,null,937,"England"]
[null,null,null,null,null,null,null,null,null,null,938,"Roth"]
[null,null,null,null,null,null,null,null,null,null,939,"Temple"]
[null,null,null,null,null,null,null,null,null,null,940,"Cantu"]
[null,null,null,null,null,null,null,null,null,null,941,"Dowling"]
[null,null,null,null,null,null,null,null,null,null,942,"Wren"]
[null,null,null,null,null,null,null,null,null,null,943,"Nicholson"]
[null,null,null,null,null,null,null,null,null,null,944,"Somerville"]
[null,null,null,null,null,null,null,null,null,null,945,"Reece"]
[null,null,null,null,null,null,null,null,null,null,946,"Devine"]
[null,null,null,null,null,null,null,null,null,null,947,"Gustafson"]
[null,null,null,null,null,null,null,null,null,null,948,"Shoemaker"]
[null,null,null,null,null,null,null,null,null,null,949,"Thurston"]
[null,null,null,null,null,null,null,null,null,null,950,"Krause"]
[null,null,null,null,null,null,null,null,null,null,951,"Olson"]
[null,null,null,null,null,null,null,null,null,null,952,"Myrick"]
[null,null,null,null,null,null,null,null,null,null,953,"Molloy"]
[null,null,null,null,null,null,null,null,null,null,954,"Sampson"]
[null,null,null,null,null,null,null,null,null,null,955,"Cooney"]
[null,null,null,null,null,null,null,null,null,null,956,"Jenkins"]
[null,null,null,null,null,null,null,null,null,null,957,"Prater"]
[null,null,null,null,null,null,null,null,null,null,958,"Carver"]
[null,null,null,null,null,null,null,null,null,null,959,"Peters"]
[null,null,null,null,null,null,null,null,null,null,960,"Schaefer"]
[null,null,null,null,null,null,null,null,null,null,961,"Putnam"]
[null,null,null,null,null,null,null,null,null,null,962,"Welsh"]
[null,null,null,null,null,null,null,null,null,null,963,"Churchill"]
[null,null,null,null,null,null,null,null,null,null,964,"Broussard"]
[null,null,null,null,null,null,null,null,null,null,965,"Dodd"]
[null,null,null,null,null,null,null,null,null,null,966,"Spears"]
[null,null,null,null,null,null,null,null,null,null,967,"Willoughby"]
[null,null,null,null,null,null,null,null,null,null,968,"Head"]
[null,null,null,null,null,null,null,null,null,null,969,"Penn"]
[null,null,null,null,null,null,null,null,null,null,970,"Cleveland"]
[null,null,null,null,null,null,null,null,null,null,971,"Lacroix"]
[null,null,null,null,null,null,null,null,null,null,972,"Loomis"]
[null,null,null,null,null,null,null,null,null,null,973,"Ogle"]
[null,null,null,null,null,null,null,null,null,null,974,"Self"]
[null,null,null,null,null,null,null,null,null,null,975,"Bowers"]
[null,null,null,null,null,null,null,null,null,null,976,"Terry"]
[null,null,null,null,null,null,null,null,null,null,977,"Muir"]
[null,null,null,null,null,null,null,null,null,null,978,"Duggan"]
[null,null,null,null,null,null,null,null,null,null,979,"Bateman"]
[null,null,null,null,null,null,null,null,null,null,980,"Shaffer"]
[null,null,null,null,null,null,null,null,null,null,981,"Cox"]
[null,null,null,null,null,null,null,null,null,null,982,"Taylor"]
[null,null,null,null,null,null,null,null,null,null,983,"Gauthier"]
[null,null,null,null,null,null,null,null,null,null,984,"Shields"]
[null,null,null,null,null,null,null,null,null,null,985,"Gillespie"]
[null,null,null,null,null,null,null,null,null,null,986,"Tilley"]
[null,null,null,null,null,null,null,null,null,null,987,"Urquhart"]
[null,null,null,null,null,null,null,null,null,null,988,"Goode"]
[null,null,null,null,null,null,null,null,null,null,989,"Almeida"]
[null,null,null,null,null,null,null,null,null,null,990,"Choate"]
[null,null,null,null,null,null,null,null,null,null,991,"Stiles"]
[null,null,null,null,null,null,null,null,null,null,992,"Childers"]
[null,null,null,null,null,null,null,null,null,null,993,"Moody"]
[null,null,null,null,null,null,null,null,null,null,994,"Young"]
[null,null,null,null,null,null,null,null,null,null,995,"Carey"]
[null,null,null,null,null,null,null,null,null,null,996,"Nicholson"]
[null,null,null,null,null,null,null,null,null,null,997,"Jamison"]
[null,null,null,null,null,null,null,null,null,null,998,"Humphries"]
[null,null,null,null,null,null,null,null,null,null,999,"Pittman"]
[null,null,null,null,null,null,null,null,null,null,1000,"Mead"]